fUSD/lending_fUSD_20240814
["ID","MTS","AMOUNT","RATE_DAILY","PERIOD"]
[334850875,1723609235733,500.0,0.00013972,2]
[334850876,1723609235845,500.0,0.00013698,2]
[334850877,1723609236046,500.0,0.00013698,2]
[334850878,1723609236088,2231.98,0.00013698,2]
[334850879,1723609236133,1062.19,0.00013698,2]
[334850880,1723609236253,500.0,0.00013972,2]
[334850881,1723609236294,2231.98,0.00013972,2]
[334850882,1723609236325,1062.19,0.00013972,2]
[334850883,1723609236810,500.0,0.00013698,2]
[334850884,1723609236848,150.215106,0.00013698,2]
[334850885,1723609236903,500.0,0.00013972,2]
[334850886,1723609237113,154.704359,0.00013698,2]
[334850887,1723609237209,500.0,0.00013698,2]
[334850888,1723609237256,155.0,0.00013989,2]
[334850889,1723609238726,1885.75,0.00013698,2]
[334850890,1723609238958,1885.75,0.00013972,2]
[334850891,1723609239470,1081.43,0.00013698,2]
[334850892,1723609239497,178.467281,0.00013698,2]
[334850893,1723609239639,1081.43,0.00013972,2]
[334850894,1723609239759,178.467281,0.00013972,2]
[334850895,1723609239857,1406.89,0.00013698,2]
[334850896,1723609239889,2366.58,0.00013698,2]
[334850897,1723609240107,1406.89,0.00013972,2]
[334850898,1723609240139,2366.58,0.00013972,2]
[334850899,1723609240949,262.264457,0.00013698,2]
[334850900,1723609241241,262.264457,0.00013972,2]
[334850901,1723609241291,1417.64,0.00013698,2]
[334850902,1723609241566,1417.64,0.00013972,2]
[334850903,1723609241685,576.51,0.00013698,2]
[334850904,1723609243063,1703.07,0.00013698,2]
[334850905,1723609243091,500.0,0.00013698,2]
[334850906,1723609243139,576.51,0.00013972,2]
[334850907,1723609243318,500.0,0.00013972,2]
[334850908,1723609243353,1703.07,0.00013972,2]
[334850909,1723609243559,500.0,0.00013698,2]
[334850910,1723609243612,500.0,0.00013698,2]
[334850911,1723609243734,687.0,0.00013698,2]
[334850912,1723609243885,500.0,0.00013972,2]
[334850913,1723609243969,500.0,0.00013972,2]
[334850914,1723609244004,687.0,0.00013972,2]
[334850915,1723609245479,500.0,0.00013698,2]
[334850916,1723609245635,500.0,0.00013972,2]
[334850917,1723609245975,779.74,0.00013698,2]
[334850918,1723609246159,4795.78,0.00013698,2]
[334850919,1723609246403,779.74,0.00013972,2]
[334850920,1723609246433,4795.78,0.00013972,2]
[334850921,1723609247240,2551.67,0.00013698,2]
[334850922,1723609247293,500.0,0.00013698,2]
[334850923,1723609247530,2551.67,0.00013972,2]
[334850924,1723609247697,500.0,0.00013972,2]
[334850925,1723609248894,681.03,0.00013698,2]
[334850926,1723609249156,681.03,0.00013972,2]
[334850927,1723609249308,214.992125,0.00013698,2]
[334850928,1723609249648,214.992125,0.00013972,2]
[334850929,1723609249790,500.0,0.00013698,2]
[334850930,1723609249956,500.0,0.00013698,2]
[334850931,1723609250017,7779.54,0.00013698,2]
[334850932,1723609250048,500.0,0.00013972,2]
[334850933,1723609250229,500.0,0.00013972,2]
[334850934,1723609250290,7779.54,0.00013972,2]
[334850935,1723609251370,500.0,0.00013698,2]
[334850936,1723609251446,500.0,0.00013972,2]
[334850938,1723609251475,500.0,0.00013698,2]
[334850939,1723609251520,533.04,0.00013698,2]
[334850940,1723609251655,500.0,0.00013972,2]
[334850941,1723609251738,533.04,0.00013972,2]
[334850944,1723609252172,648.57,0.00013698,2]
[334850945,1723609252444,648.57,0.00013972,2]
[334850946,1723609252542,1949.49,0.00013698,2]
[334850947,1723609252805,1949.49,0.00013972,2]
[334850948,1723609253655,500.0,0.00013698,2]
[334850949,1723609253881,500.0,0.00013972,2]
[334850950,1723609253934,1129.95,0.00013698,2]
[334850951,1723609254159,747.12,0.00013698,2]
[334850952,1723609254202,1129.95,0.00013972,2]
[334850953,1723609254374,859.4,0.00013698,2]
[334850954,1723609254417,747.12,0.00013972,2]
[334850955,1723609254452,500.0,0.00013698,2]
[334850956,1723609254638,859.4,0.00013972,2]
[334850957,1723609254728,500.0,0.00013972,2]
[334850958,1723609255987,695.39,0.00013698,2]
[334850959,1723609256155,695.39,0.00013972,2]
[334850960,1723609258072,500.0,0.00013698,2]
[334850961,1723609258339,500.0,0.00013972,2]
[334850962,1723609258484,573.93,0.00013698,2]
[334850963,1723609258755,573.93,0.00013972,2]
[334850964,1723609258787,255.4305304,0.00013698,2]
[334850965,1723609259549,500.0,0.00013698,2]
[334850966,1723609259869,500.0,0.00013972,2]
[334850967,1723609259957,2622.52,0.00013698,2]
[334850968,1723609260270,2622.52,0.00013972,2]
[334850969,1723609260855,1042.07491144,0.00013333,2]
[334850970,1723609261035,500.0,0.00013698,2]
[334850971,1723609261320,500.0,0.00013972,2]
[334850972,1723609261451,575.8,0.00013698,2]
[334850973,1723609261726,575.8,0.00013972,2]
[334850974,1723609262521,509.36318051,0.00013698,2]
[334850975,1723609263398,1721.69,0.00013698,2]
[334850976,1723609263523,500.0,0.00013698,2]
[334850977,1723609263805,500.0,0.00013972,2]
[334850978,1723609263971,1721.69,0.00013972,2]
[334850979,1723609264803,1073.74,0.00013698,2]
[334850980,1723609265108,1073.74,0.00013972,2]
[334850981,1723609265174,2787.92,0.00013698,2]
[334850982,1723609265276,1803.13,0.00013698,2]
[334850983,1723609265483,2787.92,0.00013972,2]
[334850984,1723609265566,1803.13,0.00013972,2]
[334850986,1723609266410,4818.3,0.00013698,2]
[334850987,1723609266448,1436.09,0.00013698,2]
[334850988,1723609266512,4818.3,0.00013972,2]
[334850989,1723609266591,1436.09,0.00013972,2]
[334850990,1723609266888,784.46,0.00013698,2]
[334850991,1723609267146,784.46,0.00013972,2]
[334850992,1723609267633,548.88,0.00013698,2]
[334850993,1723609267813,813.12,0.00013698,2]
[334850994,1723609267903,548.88,0.00013972,2]
[334850995,1723609267934,500.0,0.00013698,2]
[334850996,1723609268140,500.0,0.00013972,2]
[334850997,1723609268352,1169.53,0.00013698,2]
[334850998,1723609268379,813.12,0.00013972,2]
[334850999,1723609268636,1169.53,0.00013972,2]
[334851000,1723609269089,500.0,0.00013698,2]
[334851001,1723609269361,500.0,0.00013972,2]
[334851002,1723609270163,1717.88,0.00013698,2]
[334851003,1723609270721,500.0,0.00013698,2]
[334851004,1723609270759,1717.88,0.00013972,2]
[334851005,1723609270972,500.0,0.00013972,2]
[334851006,1723609271570,500.0,0.00013698,2]
[334851007,1723609271839,500.0,0.00013972,2]
[334851008,1723609271896,500.0,0.00013698,2]
[334851009,1723609272530,500.0,0.00013972,2]
[334851010,1723609272589,500.0,0.00013698,2]
[334851011,1723609272674,500.0,0.00013972,2]
[334851012,1723609272739,500.0,0.00013698,2]
[334851013,1723609272949,500.0,0.00013972,2]
[334851014,1723609273798,3517.48,0.00013698,2]
[334851015,1723609274060,3517.48,0.00013972,2]
[334851016,1723609274975,817.69,0.00013698,2]
[334851017,1723609275291,817.69,0.00013972,2]
[334851018,1723609275726,874.05,0.00013698,2]
[334851019,1723609275925,550.41,0.00013698,2]
[334851020,1723609275992,500.0,0.00013698,2]
[334851021,1723609276272,550.41,0.00013972,2]
[334851022,1723609276330,500.0,0.00013972,2]
[334851023,1723609276830,874.05,0.00013972,2]
[334851024,1723609276927,2786.76,0.00013698,2]
[334851025,1723609277034,662.44,0.00013698,2]
[334851026,1723609277101,2786.76,0.00013972,2]
[334851027,1723609277142,662.44,0.00013972,2]
[334851028,1723609277299,514.89,0.00013698,2]
[334851029,1723609277430,897.12,0.00013698,2]
[334851030,1723609277609,514.89,0.00013972,2]
[334851031,1723609277979,5645.95,0.00013698,2]
[334851032,1723609278141,897.12,0.00013972,2]
[334851033,1723609278308,5645.95,0.00013972,2]
[334851034,1723609278514,500.0,0.00013698,2]
[334851035,1723609278789,500.0,0.00013972,2]
[334851036,1723609279550,502.57356277,0.00013698,2]
[334851037,1723609279790,1096.36,0.00013698,2]
[334851038,1723609280083,1096.36,0.00013972,2]
[334851039,1723609280119,170.59,0.00012575,2]
[334851040,1723609281027,4365.39,0.00013698,2]
[334851041,1723609281293,4365.39,0.00013972,2]
[334851042,1723609281949,722.1,0.00013698,2]
[334851043,1723609282208,722.1,0.00013972,2]
[334851045,1723609283331,500.0,0.00013698,2]
[334851046,1723609283591,502.38377039,0.00013972,2]
[334851047,1723609283993,2354.3,0.00013698,2]
[334851048,1723609284249,2354.3,0.00013972,2]
[334851049,1723609284927,1677.46,0.00013698,2]
[334851050,1723609285041,500.0,0.00013698,2]
[334851051,1723609285193,1677.46,0.00013972,2]
[334851052,1723609285269,827.12,0.00013698,2]
[334851053,1723609285303,500.0,0.00013972,2]
[334851054,1723609285433,1245.53,0.00013698,2]
[334851055,1723609285528,827.12,0.00013972,2]
[334851056,1723609285748,1245.53,0.00013972,2]
[334851057,1723609286119,1331.11,0.00013698,2]
[334851058,1723609286146,500.0,0.00013698,2]
[334851059,1723609286194,254.09,0.00011,2]
[334851060,1723609286265,3636.32,0.00013698,2]
[334851061,1723609286578,500.0,0.00013972,2]
[334851062,1723609286642,1331.11,0.00013972,2]
[334851063,1723609286709,3636.32,0.00013972,2]
[334851064,1723609287221,689.33,0.00013698,2]
[334851065,1723609287250,500.0,0.00013698,2]
[334851066,1723609287325,500.0,0.00013972,2]
[334851067,1723609287352,689.33,0.00013972,2]
[334851068,1723609287750,747.02,0.00013698,2]
[334851069,1723609288019,747.02,0.00013972,2]
[334851070,1723609288803,500.0,0.00013698,2]
[334851071,1723609288909,500.0,0.00013698,2]
[334851072,1723609289066,500.0,0.00013972,2]
[334851073,1723609289186,500.0,0.00013972,2]
[334851074,1723609289443,979.9,0.00013698,2]
[334851075,1723609289713,979.9,0.00013972,2]
[334851076,1723609290848,1820.59,0.00013698,2]
[334851077,1723609290959,527.88,0.00013698,2]
[334851078,1723609291374,1820.59,0.00013972,2]
[334851079,1723609291401,527.88,0.00013972,2]
[334851080,1723609293105,1337.17,0.00013698,2]
[334851081,1723609293372,1337.17,0.00013972,2]
[334851082,1723609293673,3608.51,0.00013698,2]
[334851083,1723609293913,3608.51,0.00013972,2]
[334851084,1723609294050,2317.78,0.00013698,2]
[334851085,1723609294117,500.0,0.00013698,2]
[334851086,1723609294179,568.75,0.00013698,2]
[334851087,1723609294310,2317.78,0.00013972,2]
[334851088,1723609294373,500.0,0.00013972,2]
[334851089,1723609294446,568.75,0.00013972,2]
[334851091,1723609295507,1767.63,0.00013698,2]
[334851092,1723609295678,500.0,0.00013698,2]
[334851093,1723609295777,1767.63,0.00013972,2]
[334851094,1723609295934,768.37,0.00013698,2]
[334851095,1723609296191,768.37,0.00013972,2]
[334851096,1723609296272,500.0,0.00013972,2]
[334851097,1723609296448,500.0,0.00013698,2]
[334851098,1723609296659,2934.28,0.00013698,2]
[334851099,1723609296712,500.0,0.00013972,2]
[334851100,1723609296938,2934.28,0.00013972,2]
[334851101,1723609297168,1308.24,0.00013698,2]
[334851102,1723609297736,1308.24,0.00013972,2]
[334851103,1723609297776,1788.55,0.00013698,2]
[334851104,1723609297873,1788.55,0.00013972,2]
[334851105,1723609298059,665.33,0.00013698,2]
[334851107,1723609298277,665.33,0.00013972,2]
[334851108,1723609298897,1152.45,0.00013698,2]
[334851109,1723609299143,1152.45,0.00013972,2]
[334851110,1723609299334,500.0,0.00013698,2]
[334851111,1723609299603,500.0,0.00013972,2]
[334851112,1723609299997,1282.94,0.00013698,2]
[334851113,1723609300246,1282.94,0.00013972,2]
[334851114,1723609300272,500.0,0.00013698,2]
[334851115,1723609300442,521.96282745,0.00013698,2]
[334851116,1723609300522,500.0,0.00013972,2]
[334851117,1723609303693,500.0,0.00013698,2]
[334851118,1723609303762,500.0,0.00013698,2]
[334851119,1723609303803,63979.25,0.00013698,2]
[334851120,1723609303901,500.0,0.00013698,2]
[334851121,1723609304070,500.0,0.00013972,2]
[334851122,1723609304101,63979.25,0.00013972,2]
[334851123,1723609304128,573.78,0.00013698,2]
[334851124,1723609304197,500.0,0.00013972,2]
[334851125,1723609304353,573.78,0.00013972,2]
[334851127,1723609305883,1063.61,0.00013698,2]
[334851128,1723609306015,561.17,0.00013698,2]
[334851129,1723609306220,1063.61,0.00013972,2]
[334851130,1723609306308,561.17,0.00013972,2]
[334851132,1723609306478,3158.76,0.00013698,2]
[334851133,1723609306548,543.31,0.00013698,2]
[334851134,1723609306754,3158.76,0.00013972,2]
[334851135,1723609306811,543.31,0.00013972,2]
[334851137,1723609307169,727.32,0.00013698,2]
[334851138,1723609307445,727.32,0.00013972,2]
[334851139,1723609308160,1911.45,0.00013698,2]
[334851140,1723609308305,1911.45,0.00013972,2]
[334851141,1723609308542,4068.95,0.00013698,2]
[334851142,1723609308806,4068.95,0.00013972,2]
[334851143,1723609309264,793.97,0.00013698,2]
[334851144,1723609309439,793.97,0.00013972,2]
[334851145,1723609309641,2007.43,0.00013698,2]
[334851146,1723609309688,500.0,0.00013698,2]
[334851147,1723609309717,500.0,0.00013698,2]
[334851148,1723609309896,2007.43,0.00013972,2]
[334851149,1723609309950,500.0,0.00013972,2]
[334851150,1723609309977,500.0,0.00013972,2]
[334851151,1723609310485,500.0,0.00013698,2]
[334851152,1723609310513,574.12,0.00013698,2]
[334851153,1723609310739,500.0,0.00013972,2]
[334851154,1723609310774,574.12,0.00013972,2]
[334851157,1723609313346,504.08620911,0.00013698,2]
[334851159,1723609314508,1434.41,0.00013698,2]
[334851162,1723609314641,500.0,0.00013698,2]
[334851163,1723609314899,500.0,0.00013972,2]
[334851164,1723609315094,1434.41,0.00013972,2]
[334851165,1723609315429,1032.04,0.00013698,2]
[334851166,1723609315721,1032.04,0.00013972,2]
[334851167,1723609316448,831.96,0.00013698,2]
[334851168,1723609316700,831.96,0.00013972,2]
[334851169,1723609317074,500.0,0.00013698,2]
[334851170,1723609317336,500.0,0.00013972,2]
[334851171,1723609317433,500.0,0.00013698,2]
[334851172,1723609317721,1203.92,0.00013698,2]
[334851173,1723609317993,1101.68,0.00013698,2]
[334851174,1723609318019,1203.92,0.00013972,2]
[334851175,1723609318055,788.71,0.00013698,2]
[334851176,1723609318655,1101.68,0.00013972,2]
[334851177,1723609318694,788.71,0.00013972,2]
[334851179,1723609318749,500.0,0.00013972,2]
[334851181,1723609319048,548.96,0.00013698,2]
[334851182,1723609319306,548.96,0.00013972,2]
[334851187,1723609320325,1022.65,0.00013698,2]
[334851188,1723609320488,7630.16,0.00013698,2]
[334851189,1723609320599,1022.65,0.00013972,2]
[334851192,1723609321107,7630.16,0.00013972,2]
[334851196,1723609322951,500.0,0.00013698,2]
[334851197,1723609323214,500.0,0.00013972,2]
[334851202,1723609324526,1753.38,0.00013698,2]
[334851203,1723609324611,591.64,0.00013698,2]
[334851204,1723609324799,1753.38,0.00013972,2]
[334851205,1723609324904,591.64,0.00013972,2]
[334851206,1723609324938,565.22,0.00013698,2]
[334851207,1723609325221,565.22,0.00013972,2]
[334851212,1723609327565,3363.39,0.00013698,2]
[334851213,1723609327611,1248.17,0.00013698,2]
[334851214,1723609327851,3363.39,0.00013972,2]
[334851215,1723609327881,1248.17,0.00013972,2]
[334851216,1723609327941,3513.64,0.00013698,2]
[334851217,1723609328234,3513.64,0.00013972,2]
[334851219,1723609329242,1358.16,0.00013698,2]
[334851220,1723609329382,524.48,0.00013698,2]
[334851221,1723609329421,757.67,0.00013698,2]
[334851222,1723609329459,1358.16,0.00013972,2]
[334851223,1723609329512,524.48,0.00013972,2]
[334851224,1723609329542,757.67,0.00013972,2]
[334851227,1723609329949,500.0,0.00013698,2]
[334851228,1723609330229,500.0,0.00013972,2]
[334851229,1723609331543,1262.29,0.00013698,2]
[334851230,1723609331670,500.0,0.00013698,2]
[334851231,1723609331788,1262.29,0.00013972,2]
[334851232,1723609332176,500.0,0.00013698,2]
[334851233,1723609332583,500.0,0.00013972,2]
[334851234,1723609332800,5521.92,0.00013698,2]
[334851235,1723609333095,5521.92,0.00013972,2]
[334851236,1723609333247,11915.37,0.00013698,2]
[334851237,1723609333484,11915.37,0.00013972,2]
[334851239,1723609334762,1063.98,0.00013698,2]
[334851240,1723609334796,1515.14,0.00013698,2]
[334851243,1723609335549,1063.98,0.00013972,2]
[334851244,1723609335582,1515.14,0.00013972,2]
[334851245,1723609336460,8047.28,0.00013698,2]
[334851246,1723609336727,8047.28,0.00013972,2]
[334851247,1723609338161,500.0,0.00013698,2]
[334851248,1723609338467,500.0,0.00013972,2]
[334851249,1723609338590,1432.6,0.00013698,2]
[334851250,1723609338860,1432.6,0.00013972,2]
[334851251,1723609339730,1036.82,0.00013698,2]
[334851252,1723609339758,591.45,0.00013698,2]
[334851253,1723609339904,1036.82,0.00013972,2]
[334851254,1723609339935,591.45,0.00013972,2]
[334851255,1723609339968,9595.28,0.00013698,2]
[334851256,1723609340048,9595.28,0.00013972,2]
[334851257,1723609340217,515.71,0.00013698,2]
[334851258,1723609340426,515.71,0.00013972,2]
[334851260,1723609341041,517.32,0.00013698,2]
[334851262,1723609341308,517.32,0.00013972,2]
[334851263,1723609341397,1528.48,0.00013698,2]
[334851264,1723609341660,1528.48,0.00013972,2]
[334851265,1723609342466,4079.76,0.00013698,2]
[334851266,1723609342788,4079.76,0.00013972,2]
[334851267,1723609343328,500.0,0.00013698,2]
[334851268,1723609343588,500.0,0.00013972,2]
[334851269,1723609343702,531.49,0.00013698,2]
[334851270,1723609343822,633.1,0.00013698,2]
[334851271,1723609343961,182.05027476,0.00013972,2]
[334851272,1723609343992,531.49,0.00013972,2]
[334851273,1723609344087,633.1,0.00013972,2]
[334851275,1723609345906,500.0,0.00013698,2]
[334851276,1723609346176,500.0,0.00013972,2]
[334851277,1723609348332,500.0,0.00013698,2]
[334851278,1723609348369,500.0,0.00013698,2]
[334851279,1723609348616,500.0,0.00013972,2]
[334851280,1723609348736,500.0,0.00013972,2]
[334851281,1723609348978,949.66,0.00013698,2]
[334851282,1723609349240,4888.12,0.00013698,2]
[334851283,1723609349272,949.66,0.00013972,2]
[334851284,1723609349514,4888.12,0.00013972,2]
[334851285,1723609351238,6502.39,0.00013698,2]
[334851286,1723609351516,6502.39,0.00013972,2]
[334851287,1723609353062,611.16,0.00013698,2]
[334851288,1723609353144,670.33,0.00013698,2]
[334851289,1723609353244,500.0,0.00013698,2]
[334851290,1723609353403,670.33,0.00013972,2]
[334851291,1723609353430,611.16,0.00013972,2]
[334851292,1723609353515,1056.45,0.00013698,2]
[334851293,1723609353599,500.0,0.00013972,2]
[334851294,1723609353820,2458.68,0.00013698,2]
[334851295,1723609353850,1056.45,0.00013972,2]
[334851296,1723609354029,1394.22,0.00013698,2]
[334851297,1723609354065,825.7,0.00013698,2]
[334851298,1723609354092,2458.68,0.00013972,2]
[334851299,1723609354309,1394.22,0.00013972,2]
[334851300,1723609354341,825.7,0.00013972,2]
[334851301,1723609354787,500.0,0.00013698,2]
[334851302,1723609355063,500.0,0.00013972,2]
[334851303,1723609355777,500.0,0.00013698,2]
[334851304,1723609356117,500.0,0.00013972,2]
[334851305,1723609356521,150.844518,0.00013698,2]
[334851306,1723609356617,15204.05,0.00013698,2]
[334851307,1723609356960,15204.05,0.00013972,2]
[334851308,1723609356990,154.704359,0.00013698,2]
[334851309,1723609358095,500.0,0.00013698,2]
[334851310,1723609358431,500.0,0.00013972,2]
[334851311,1723609358877,500.0,0.00013698,2]
[334851312,1723609358905,500.0,0.00013698,2]
[334851313,1723609359155,500.0,0.00013972,2]
[334851314,1723609359184,500.0,0.00013972,2]
[334851315,1723609359217,2130.46,0.00013698,2]
[334851316,1723609359465,2130.46,0.00013972,2]
[334851317,1723609359728,253.750419,0.00013698,2]
[334851318,1723609359882,2488.82,0.00013698,2]
[334851319,1723609360033,253.750419,0.00013698,2]
[334851320,1723609360152,2488.82,0.00013972,2]
[334851321,1723609360179,500.0,0.00013698,2]
[334851322,1723609360603,7994.13,0.00013698,2]
[334851323,1723609360650,253.750419,0.00013698,2]
[334851324,1723609360686,500.0,0.00013972,2]
[334851325,1723609360713,7994.13,0.00013972,2]
[334851326,1723609360794,253.750419,0.00013698,2]
[334851327,1723609361089,253.750419,0.00013698,2]
[334851328,1723609361195,167.401741,0.00013698,2]
[334851329,1723609361339,253.750419,0.00013698,2]
[334851330,1723609361517,167.401741,0.00013698,2]
[334851332,1723609363068,167.401741,0.00013698,2]
[334851333,1723609363121,253.750419,0.00013698,2]
[334851334,1723609363215,1262.52,0.00013698,2]
[334851335,1723609363258,364.64887528,0.00013972,2]
[334851336,1723609363323,1262.52,0.00013972,2]
[334851337,1723609363370,167.401741,0.00013698,2]
[334851338,1723609363613,649.6,0.00013698,2]
[334851339,1723609363641,858.99,0.00013698,2]
[334851340,1723609363689,862.28,0.00013698,2]
[334851341,1723609363718,167.401741,0.00013698,2]
[334851342,1723609363886,858.99,0.00013972,2]
[334851343,1723609363922,649.6,0.00013972,2]
[334851344,1723609363979,862.28,0.00013972,2]
[334851345,1723609364010,167.401741,0.00013698,2]
[334851346,1723609364318,253.750419,0.00013972,2]
[334851347,1723609364348,167.401741,0.00013698,2]
[334851348,1723609364637,167.401741,0.00013972,2]
[334851349,1723609364989,167.401741,0.00013972,2]
[334851350,1723609365305,167.401741,0.00013972,2]
[334851351,1723609365335,500.0,0.00013698,2]
[334851352,1723609365634,500.0,0.00013698,2]
[334851353,1723609365894,500.0,0.00013972,2]
[334851354,1723609365922,500.0,0.00013972,2]
[334851355,1723609366113,253.750419,0.00013972,2]
[334851356,1723609366185,668.29,0.00013698,2]
[334851357,1723609366215,2830.44,0.00013698,2]
[334851358,1723609366274,167.401741,0.00013972,2]
[334851359,1723609366455,668.29,0.00013972,2]
[334851360,1723609366483,2830.44,0.00013972,2]
[334851361,1723609366885,167.401741,0.00013972,2]
[334851362,1723609367210,167.401741,0.00013972,2]
[334851363,1723609367669,519.34,0.00013698,2]
[334851364,1723609367928,519.34,0.00013972,2]
[334851365,1723609368629,292.10908186,0.00013972,2]
[334851366,1723609368829,500.0,0.00013698,2]
[334851367,1723609369055,500.0,0.00013972,2]
[334851368,1723609369323,2308.02,0.00013698,2]
[334851369,1723609369572,227.80268088,0.00013698,2]
[334851370,1723609369634,2308.02,0.00013972,2]
[334851371,1723609369948,3282.58,0.00013698,2]
[334851372,1723609370192,3282.58,0.00013972,2]
[334851373,1723609370342,994.54,0.00013698,2]
[334851374,1723609370550,500.0,0.00013698,2]
[334851375,1723609371188,493.10492771,0.00013698,2]
[334851376,1723609371235,156.685771,0.00013698,2]
[334851377,1723609371270,500.0,0.00013972,2]
[334851378,1723609371324,156.685771,0.00013698,2]
[334851379,1723609371451,253.750419,0.00013972,2]
[334851380,1723609371499,156.685771,0.00013698,2]
[334851381,1723609371567,253.750419,0.00013972,2]
[334851382,1723609371595,500.0,0.00013698,2]
[334851383,1723609371657,156.685771,0.00013698,2]
[334851384,1723609371888,155.12794164,0.00013972,2]
[334851385,1723609371965,156.685771,0.00013698,2]
[334851386,1723609372042,253.750419,0.00013972,2]
[334851387,1723609372291,156.685771,0.00013698,2]
[334851388,1723609372337,253.750419,0.00013972,2]
[334851389,1723609372540,994.54,0.00013972,2]
[334851390,1723609372585,500.0,0.00013698,2]
[334851391,1723609372621,156.685771,0.00013698,2]
[334851392,1723609372852,500.0,0.00013972,2]
[334851393,1723609372909,156.685771,0.00013972,2]
[334851394,1723609373221,156.685771,0.00013972,2]
[334851395,1723609373531,156.685771,0.00013972,2]
[334851396,1723609373825,500.0,0.00013698,2]
[334851397,1723609373875,156.685771,0.00013972,2]
[334851398,1723609374104,500.0,0.00013972,2]
[334851399,1723609374180,156.685771,0.00013972,2]
[334851400,1723609374487,156.685771,0.00013972,2]
[334851401,1723609374655,1227.55909052,0.00013698,2]
[334851402,1723609375997,500.0,0.00013698,2]
[334851403,1723609376043,500.0,0.00013698,2]
[334851404,1723609376277,500.0,0.00013972,2]
[334851405,1723609376308,500.0,0.00013972,2]
[334851406,1723609376623,975.19329356,0.00013972,2]
[334851408,1723609377596,1398.14,0.00013698,2]
[334851409,1723609377746,500.0,0.00013698,2]
[334851410,1723609377845,1398.14,0.00013972,2]
[334851411,1723609378174,2226.29,0.00013698,2]
[334851414,1723609378461,2226.29,0.00013972,2]
[334851415,1723609378490,500.0,0.00013972,2]
[334851416,1723609378870,1997.19,0.00013698,2]
[334851417,1723609378909,3856.29,0.00013698,2]
[334851418,1723609379217,3856.29,0.00013972,2]
[334851419,1723609379456,183716.80201461,0.00013698,2]
[334851420,1723609379482,396.17220438,0.00013698,2]
[334851421,1723609379508,1997.19,0.00013972,2]